bitfinex/quotes_BTCUSD_20240727
["timestamp","ask_amount","ask_price","bid_price","bid_amount"]
[1722050155398,0.33695308,68011.0,68010.0,0.30807]
[1722050155773,0.29307999,68011.0,68010.0,0.30807]
[1722050156104,0.20484707,68011.0,68010.0,0.30807]
[1722050156307,0.20640127,68011.0,68010.0,0.30807]
[1722050156709,0.20484707,68011.0,68010.0,0.30807]
[1722050157583,0.20484707,68011.0,68010.0,0.455107]
[1722050157754,0.25913717,68011.0,68010.0,0.455107]
[1722050158169,0.25763717,68011.0,68010.0,0.455107]
[1722050158575,0.12534707,68011.0,68010.0,0.455107]
[1722050158775,0.12690127,68011.0,68010.0,0.455107]
[1722050158976,0.08282757,68011.0,68010.0,0.455107]
[1722050159363,0.12667753,68011.0,68010.0,0.455107]
[1722050160346,0.12667753,68011.0,68010.0,0.30807]
[1722050160549,0.12512333,68011.0,68010.0,0.30807]
[1722050161255,0.12667753,68011.0,68010.0,0.30807]
[1722050161439,0.08282757,68011.0,68010.0,0.30807]
[1722050161642,0.12548495,68011.0,68010.0,0.30807]
[1722050162708,0.50265495,68011.0,68010.0,0.30807]
[1722050162911,0.64968995,68011.0,68010.0,0.30807]
[1722050163263,1.23782995,68011.0,68010.0,0.30807]
[1722050163812,1.23938415,68011.0,68010.0,0.30807]
[1722050164011,1.23938415,68011.0,68010.0,0.29407]
[1722050164395,1.31821223,68011.0,68010.0,0.30307]
[1722050164599,1.31821223,68011.0,68010.0,0.29407]
[1722050164950,1.19517257,68011.0,68010.0,0.29407]
[1722050165145,1.31738734,68011.0,68010.0,0.29407]
[1722050165347,1.66145734,68011.0,68010.0,0.29407]
[1722050165566,1.66301154,68011.0,68010.0,0.29407]
[1722050165777,1.66385154,68011.0,68010.0,0.29407]
[1722050165959,1.66229734,68011.0,68010.0,0.29407]
[1722050166388,1.66385154,68011.0,68010.0,0.29407]
[1722050166965,1.66229734,68011.0,68010.0,0.29407]
[1722050167165,1.66385154,68011.0,68010.0,0.29407]
[1722050167619,1.66229734,68011.0,68010.0,0.29407]
[1722050167793,1.66385154,68011.0,68010.0,0.29407]
[1722050168354,1.66363882,68011.0,68010.0,0.29407]
[1722050168559,1.66208462,68011.0,68010.0,0.29407]
[1722050168801,1.36956882,68011.0,68010.0,0.29407]
[1722050169533,1.3781941,68011.0,68010.0,0.29407]
[1722050169673,0.95526227,68011.0,68010.0,0.29407]
[1722050169872,1.24777807,68011.0,68010.0,0.29407]
[1722050170619,1.24933227,68011.0,68010.0,0.29407]
[1722050171144,1.24777807,68011.0,68010.0,0.29407]
[1722050171551,1.24777807,68011.0,68010.0,0.29507]
[1722050171763,1.37812104,68011.0,68010.0,0.29507]
[1722050172250,1.37656684,68011.0,68010.0,0.29507]
[1722050172397,1.37812104,68011.0,68010.0,0.29507]
[1722050173319,1.67474914,68011.0,68010.0,0.29507]
[1722050173507,1.92319494,68011.0,68010.0,0.29507]
[1722050173715,2.05554913,68011.0,68010.0,0.29507]
[1722050173934,2.2058087,68011.0,68010.0,0.29507]
[1722050174679,2.05554913,68011.0,68010.0,0.29507]
[1722050174818,2.13194913,68011.0,68010.0,0.29407]
[1722050175023,2.13045127,68011.0,68010.0,0.29407]
[1722050175260,2.13245127,68011.0,68010.0,0.29407]
[1722050176688,2.13045127,68011.0,68010.0,0.29407]
[1722050176905,2.13089707,68011.0,68010.0,0.29507]
[1722050177254,2.13245127,68011.0,68010.0,0.29507]
[1722050177642,1.88245127,68011.0,68010.0,0.29507]
[1722050178251,2.13245127,68011.0,68010.0,0.29507]
[1722050178479,2.13341606,68011.0,68010.0,0.29507]
[1722050180596,2.01046594,68011.0,68010.0,0.29507]
[1722050180734,2.13131936,68011.0,68010.0,0.29507]
[1722050180942,2.13287356,68011.0,68010.0,0.29507]
[1722050181769,2.13131936,68011.0,68010.0,0.29507]
[1722050181979,2.13287356,68011.0,68010.0,0.29507]
[1722050183196,1.78347356,68011.0,68010.0,0.29507]
[1722050183387,1.56580356,68011.0,68010.0,0.29507]
[1722050184014,1.56424936,68011.0,68010.0,0.29507]
[1722050184232,1.44184174,68011.0,68010.0,0.29507]
[1722050184456,1.56426213,68011.0,68010.0,0.29507]
[1722050184632,1.56581633,68011.0,68010.0,0.29507]
[1722050185049,1.54274297,68011.0,68010.0,0.29507]
[1722050185380,1.42032258,68011.0,68010.0,0.29507]
[1722050185499,1.54273747,68011.0,68010.0,0.29507]
[1722050186507,1.46633747,68011.0,68010.0,0.29507]
[1722050186707,1.54273747,68011.0,68010.0,0.29507]
[1722050188135,1.41876838,68011.0,68010.0,0.29507]
[1722050188348,1.54322308,68011.0,68010.0,0.29507]
[1722050188750,1.54166888,68011.0,68010.0,0.29507]
[1722050188946,1.54322308,68011.0,68010.0,0.29507]
[1722050189421,1.41682308,68011.0,68010.0,0.29507]
[1722050189615,1.13589699,68011.0,68010.0,0.37147]
[1722050189818,0.97875404,68011.0,68010.0,0.37147]
[1722050190134,0.2910212,68011.0,68010.0,0.37147]
[1722050190380,0.506141,68011.0,68010.0,0.37147]
[1722050190835,0.798211,68011.0,68010.0,0.37047]
[1722050191075,0.803211,68011.0,68010.0,0.37047]
[1722050191611,0.803211,68011.0,68010.0,0.37547]
[1722050192031,0.75885354,68011.0,68010.0,0.37547]
[1722050192307,0.88269528,68011.0,68010.0,0.37547]
[1722050193830,0.88269528,68011.0,68010.0,0.29907]
[1722050195612,0.88298194,68011.0,68010.0,0.29907]
[1722050198055,0.88298194,68011.0,68010.0,0.29407]
[1722050198056,0.87798194,68011.0,68010.0,0.29407]
[1722050198269,0.87798194,68011.0,68010.0,0.29807]
[1722050199051,0.75385354,68011.0,68010.0,0.29807]
[1722050199247,1.23466257,68011.0,68010.0,0.29807]
[1722050200254,0.87759257,68011.0,68010.0,0.29807]
[1722050200859,0.87759257,68011.0,68010.0,0.37887]
[1722050202401,0.87743126,68011.0,68010.0,0.37887]
[1722050202810,0.14225626,68011.0,68010.0,0.37887]
[1722050203038,0.06338504,68011.0,68010.0,0.37887]
[1722050203240,0.65484704,68011.0,68010.0,0.37887]
[1722050203378,0.50604424,68011.0,68010.0,0.37887]
[1722050203576,0.65330775,68011.0,68010.0,0.37887]
[1722050203798,0.50449004,68011.0,68010.0,0.37887]
[1722050204000,0.50604424,68011.0,68010.0,0.37887]
[1722050204213,0.50348614,68011.0,68010.0,0.37887]
[1722050204411,0.20941614,68011.0,68010.0,0.37887]
[1722050205264,0.20786194,68011.0,68010.0,0.37887]
[1722050205864,0.16315544,68011.0,68010.0,0.37887]
[1722050206065,0.20767396,68011.0,68010.0,0.37887]
[1722050206231,0.20761414,68011.0,68010.0,0.37887]
[1722050207295,0.16315544,68011.0,68010.0,0.37887]
[1722050207536,0.20758801,68011.0,68010.0,0.37887]
[1722050208960,0.50165801,68011.0,68010.0,0.37887]
[1722050209411,0.79572801,68011.0,68010.0,0.37887]
[1722050210014,0.50165801,68011.0,68010.0,0.37887]
[1722050210383,0.6504976,68011.0,68010.0,0.37887]
[1722050211398,0.65057769,68011.0,68010.0,0.37887]
[1722050212020,0.65057769,68011.0,68010.0,0.29807]
[1722050212021,1.23871769,68011.0,68010.0,0.29807]
[1722050212225,1.23149059,68011.0,68010.0,0.29807]
[1722050212456,1.30889059,68011.0,68010.0,0.29807]
[1722050213017,1.18576544,68011.0,68010.0,0.29807]
[1722050213189,1.30873923,68011.0,68010.0,0.29407]
[1722050213399,1.30873923,68011.0,68010.0,0.30007]
[1722050213400,1.29345879,68011.0,68010.0,0.30007]
[1722050213549,1.51054986,68011.0,68010.0,0.30007]
[1722050213733,1.51054986,68011.0,68010.0,0.29407]
[1722050213939,1.51054986,68011.0,68010.0,0.30007]
[1722050214352,1.52583149,68011.0,68010.0,0.29407]
[1722050214548,1.52583149,68011.0,68010.0,0.29507]
[1722050214761,1.52583149,68011.0,68010.0,0.29407]
[1722050215213,1.57583149,68011.0,68010.0,0.29407]
[1722050215629,1.9113731,68011.0,68010.0,0.29407]
[1722050215844,1.9328189,68011.0,68010.0,0.29407]
[1722050215987,2.00979783,68011.0,68010.0,0.29407]
[1722050216329,1.9945162,68011.0,68010.0,0.29407]
[1722050216469,1.99473283,68011.0,68010.0,0.29407]
[1722050216875,1.91960304,68011.0,68010.0,0.29407]
[1722050217594,1.92160304,68011.0,68010.0,0.29407]
[1722050217862,1.79641262,68011.0,68010.0,0.29407]
[1722050218133,1.92208866,68011.0,68010.0,0.29407]
[1722050219646,1.92364286,68011.0,68010.0,0.29407]
[1722050219847,1.80096682,68011.0,68010.0,0.29407]
[1722050220047,1.87581262,68011.0,68010.0,0.29407]
[1722050220248,1.9984856,68011.0,68010.0,0.29407]
[1722050220450,2.0000398,68011.0,68010.0,0.29407]
[1722050220663,2.15029937,68011.0,68010.0,0.29407]
[1722050220868,2.14874517,68011.0,68010.0,0.29407]
[1722050221067,2.15029937,68011.0,68010.0,0.29407]
[1722050221272,2.0000398,68011.0,68010.0,0.29407]
[1722050222409,1.87736682,68011.0,68010.0,0.29407]
[1722050222614,1.99978699,68011.0,68010.0,0.29407]
[1722050223218,1.99823279,68011.0,68010.0,0.29407]
[1722050223648,1.99978699,68011.0,68010.0,0.29407]
[1722050224059,2.05400503,68011.0,68010.0,0.29407]
[1722050224186,2.15245083,68011.0,68010.0,0.29407]
[1722050224608,2.44652083,68011.0,68010.0,0.29407]
[1722050224810,2.15501485,68011.0,68010.0,0.29407]
[1722050225394,2.15656905,68011.0,68010.0,0.29407]
[1722050225993,2.1548236,68011.0,68010.0,0.29407]
[1722050226175,2.10060556,68011.0,68010.0,0.29407]
[1722050226397,1.97837664,68011.0,68010.0,0.29407]
[1722050226590,2.3946745,68011.0,68010.0,0.29407]
[1722050227514,2.3916745,68011.0,68010.0,0.29407]
[1722050227814,2.54193407,68011.0,68010.0,0.29407]
[1722050227990,2.54193407,68011.0,68010.0,0.15466324]
[1722050227991,2.3916745,68011.0,68010.0,0.15466324]
[1722050228627,2.3976745,68011.0,68010.0,0.15566324]
[1722050229168,2.4876887,68011.0,68010.0,0.15566324]
[1722050229320,2.36390664,68011.0,68010.0,0.001]
[1722050229521,1.963608,68001.0,68000.0,0.000924]
[1722050229723,2.50069255,68001.0,68000.0,0.000924]
[1722050230089,2.75157321,68001.0,68000.0,0.000924]
[1722050230287,2.57771446,68001.0,68000.0,0.000924]
[1722050231660,2.58571446,68001.0,68000.0,0.000924]
[1722050231846,2.73597403,68001.0,68000.0,0.000924]
[1722050232075,2.58571446,68001.0,68000.0,0.000924]
[1722050232706,2.465121,68001.0,68000.0,0.000924]
[1722050232826,2.58565478,68001.0,68000.0,0.000924]
[1722050233479,2.80245229,68001.0,68000.0,0.000924]
[1722050233717,2.95271186,68001.0,68000.0,0.000924]
[1722050235498,2.73591435,68001.0,68000.0,0.000924]
[1722050236634,2.7446492,68001.0,68000.0,0.000924]
[1722050239638,2.74394844,68001.0,68000.0,0.000924]
[1722050240908,2.74372758,68001.0,68000.0,0.000924]
[1722050243284,2.74366735,68001.0,68000.0,0.000924]
[1722050243665,2.59340778,68001.0,68000.0,0.000924]
[1722050244031,2.47385585,68001.0,68000.0,0.000924]
[1722050244261,2.59355286,68001.0,68000.0,0.000924]
[1722050245060,2.59611194,68001.0,68000.0,0.000924]
[1722050245504,2.6191912,68001.0,68000.0,0.000924]
[1722050245709,2.76945077,68001.0,68000.0,0.000924]
[1722050245953,1.823684,67992.0,67991.0,0.0753]
[1722050246200,1.823684,67992.0,67989.0,0.001064]
[1722050246201,0.49124,67990.0,67989.0,0.001064]
[1722050246371,1.61641701,67990.0,67989.0,0.001064]
[1722050246774,1.61642046,67990.0,67989.0,0.001064]
[1722050247185,1.6171249,67990.0,67989.0,0.001064]
[1722050247407,1.6705249,67990.0,67989.0,0.001064]
[1722050247584,1.6705249,67990.0,67989.0,0.002064]
[1722050247782,1.7365249,67990.0,67989.0,0.002064]
[1722050248006,2.0095249,67990.0,67989.0,0.002064]
[1722050248315,1.6935249,67990.0,67989.0,0.002064]
[1722050249062,1.9435249,67990.0,67989.0,0.002064]
[1722050249258,2.00706668,67990.0,67989.0,0.002064]
[1722050249464,2.00765921,67990.0,67989.0,0.002064]
[1722050250014,2.36769924,67990.0,67989.0,0.002064]
[1722050250363,2.31769924,67990.0,67989.0,0.002064]
[1722050250626,2.36769924,67990.0,67989.0,0.002064]
[1722050250981,2.36769924,67990.0,67989.0,0.001064]
[1722050251324,2.37669924,67990.0,67989.0,0.001064]
[1722050253396,2.08198009,67990.0,67989.0,0.001064]
[1722050254649,2.09083587,67990.0,67989.0,0.001064]
[1722050256914,2.09008436,67990.0,67989.0,0.001064]
[1722050259177,1.529682,67982.0,67981.0,0.038113]
[1722050259353,1.84622926,67982.0,67981.0,0.038113]
[1722050259708,1.59622926,67982.0,67981.0,0.038113]
[1722050259895,1.84622926,67982.0,67981.0,0.038113]
[1722050260100,1.90520626,67982.0,67981.0,0.038113]
[1722050260300,1.788059,67982.0,67981.0,0.038113]
[1722050260513,2.05524954,67982.0,67981.0,0.038113]
[1722050260760,1.82858997,67982.0,67981.0,0.038113]
[1722050260955,1.90429642,67982.0,67981.0,0.038113]
[1722050263092,1.65429642,67982.0,67981.0,0.038113]
[1722050263701,1.65585062,67982.0,67981.0,0.038113]
[1722050264467,1.65429642,67982.0,67981.0,0.038113]
[1722050264630,1.65508125,67982.0,67981.0,0.038113]
[1722050264832,1.65429642,67982.0,67981.0,0.038113]
[1722050265228,1.65575091,67982.0,67981.0,0.038113]
[1722050265495,1.80856998,67982.0,67981.0,0.038113]
[1722050265809,1.079728,67979.0,67978.0,0.0817]
[1722050266007,1.39536542,67979.0,67978.0,0.0817]
[1722050267147,1.39558156,67979.0,67978.0,0.0817]
[1722050268310,1.40058156,67979.0,67978.0,0.0817]
[1722050268818,1.41803224,67979.0,67978.0,0.0817]
[1722050268972,1.40058156,67979.0,67978.0,0.0817]
[1722050269501,1.40058156,67979.0,67975.0,0.000924]
[1722050269502,1.079773,67976.0,67975.0,0.000924]
[1722050269680,1.39562656,67976.0,67975.0,0.000924]
[1722050270278,1.93984756,67976.0,67975.0,0.000924]
[1722050270607,2.09016359,67976.0,67975.0,0.000924]
[1722050270979,2.09116359,67976.0,67975.0,0.000924]
[1722050272968,1.84116359,67976.0,67975.0,0.000924]
[1722050273172,1.54694259,67976.0,67975.0,0.000924]
[1722050273357,1.54694259,67976.0,67975.0,0.147724]
[1722050273358,1.32028302,67976.0,67975.0,0.147724]
[1722050273509,1.39668302,67976.0,67975.0,0.147724]
[1722050273723,1.00306202,67976.0,67975.0,0.147724]
[1722050273927,1.00189136,67976.0,67975.0,0.147724]
[1722050274246,1.29611236,67976.0,67975.0,0.147724]
[1722050274832,1.00301647,67976.0,67975.0,0.147724]
[1722050275150,0.886552,67976.0,67975.0,0.147724]
[1722050275495,1.29715526,67976.0,67975.0,0.147724]
[1722050276458,1.00293426,67976.0,67975.0,0.147724]
[1722050276846,1.29715526,67976.0,67975.0,0.147724]
[1722050277292,1.29715526,67976.0,67975.0,0.000924]
[1722050277293,1.66455786,67976.0,67975.0,0.000924]
[1722050277448,1.47041483,67976.0,67975.0,0.000924]
[1722050277783,1.47066259,67976.0,67975.0,0.000924]
[1722050278346,1.32040302,67976.0,67975.0,0.000924]
[1722050280836,1.32032418,67976.0,67975.0,0.000924]
[1722050281338,1.57032418,67976.0,67975.0,0.000924]
[1722050282116,1.86454518,67976.0,67975.0,0.000924]
[1722050282302,1.57044176,67976.0,67975.0,0.000924]
[1722050282498,1.61466276,67976.0,67975.0,0.000924]
[1722050282999,1.86466276,67976.0,67975.0,0.000924]
[1722050283928,1.92016432,67976.0,67975.0,0.000924]
[1722050284120,1.37582905,67976.0,67975.0,0.000924]
[1722050285165,1.67005005,67976.0,67975.0,0.000924]
[1722050285570,1.98195005,67976.0,67975.0,0.000924]
[1722050286182,1.824071,67972.0,67971.0,0.002924]
[1722050286385,2.14002549,67972.0,67971.0,0.002924]
[1722050286789,2.14258574,67972.0,67971.0,0.002924]
[1722050287445,2.14250093,67972.0,67971.0,0.002924]
[1722050288264,2.14950093,67972.0,67971.0,0.002924]
[1722050289093,3.02663077,67972.0,67971.0,0.002924]
[1722050289316,2.91016109,67972.0,67971.0,0.0020038]
[1722050289504,3.02746163,67972.0,67971.0,0.0020038]
[1722050289972,3.02745348,67972.0,67971.0,0.0020038]
[1722050290365,3.10891348,67972.0,67971.0,0.0020038]
[1722050290711,3.11691348,67972.0,67971.0,0.0020038]
[1722050290907,3.10881565,67972.0,67971.0,0.0020038]
[1722050291297,3.1088156,67972.0,67971.0,0.0020038]
[1722050291468,2.98032376,67972.0,67971.0,0.0020038]
[1722050291933,2.68608576,67972.0,67971.0,0.0020038]
[1722050292133,1.86610473,67972.0,67971.0,0.0020038]
[1722050292334,1.90722576,67972.0,67971.0,0.0020038]
[1722050293113,1.61298776,67972.0,67971.0,0.0020038]
[1722050293310,1.82989298,67972.0,67971.0,0.0020038]
[1722050294313,1.78881775,67972.0,67971.0,0.0020038]
[1722050294460,1.83061579,67972.0,67971.0,0.0020038]
[1722050294666,1.05692529,67972.0,67971.0,0.1434038]
[1722050294863,1.05692529,67972.0,67971.0,0.0020038]
[1722050294864,1.35116329,67972.0,67971.0,0.0020038]
[1722050295304,1.33808348,67972.0,67971.0,0.0020038]
[1722050295501,1.33716329,67972.0,67971.0,0.0020038]
[1722050295838,1.63232148,67972.0,67971.0,0.0020038]
[1722050296118,1.63140129,67972.0,67971.0,0.0020038]
[1722050296542,1.63232148,67972.0,67971.0,0.0020038]
[1722050296840,1.64232148,67972.0,67971.0,0.0020038]
[1722050297044,1.64140129,67972.0,67971.0,0.0020038]
[1722050297243,1.65093694,67972.0,67971.0,0.0020038]
[1722050297573,1.53210506,67972.0,67971.0,0.0020038]
[1722050297769,1.89822702,67972.0,67971.0,0.0020038]
[1722050297927,1.78210506,67972.0,67971.0,0.0020038]
[1722050298154,1.89822555,67972.0,67971.0,0.0020038]
[1722050298489,2.40937218,67972.0,67971.0,0.0020038]
[1722050298668,2.19246355,67972.0,67971.0,0.0020038]
[1722050299064,2.1916397,67972.0,67971.0,0.0020038]
[1722050300092,2.08354335,67972.0,67971.0,0.0020038]
[1722050301082,1.96824671,67972.0,67971.0,0.0020038]
[1722050301284,2.08275683,67972.0,67971.0,0.0020038]
[1722050302116,2.17121683,67972.0,67971.0,0.0020038]
[1722050302930,2.30819452,67972.0,67971.0,0.0020038]
[1722050303247,2.41423085,67972.0,67971.0,0.0020038]
[1722050304095,2.40423085,67972.0,67971.0,0.0020038]
[1722050304282,2.41723085,67972.0,67971.0,0.0030038]
[1722050304489,2.31544304,67972.0,67971.0,0.0030038]
[1722050304701,2.41701715,67972.0,67971.0,0.0030038]
[1722050305202,1.824246,67963.0,67962.0,0.009108]
[1722050305400,2.03722011,67963.0,67962.0,0.009108]
[1722050305653,2.13722011,67963.0,67962.0,0.009108]
[1722050306658,2.14122011,67963.0,67962.0,0.009108]
[1722050306859,2.14222011,67963.0,67962.0,0.009108]
[1722050307061,2.14478123,67963.0,67962.0,0.009108]
[1722050307962,2.14479632,67963.0,67962.0,0.009108]
[1722050310045,1.89479632,67963.0,67962.0,0.009108]
[1722050311132,2.03120712,67963.0,67962.0,0.009108]
[1722050311332,2.14459352,67963.0,67962.0,0.009108]
[1722050312801,2.21082775,67963.0,67962.0,0.009108]
[1722050313000,2.15338969,67963.0,67962.0,0.009108]
[1722050313218,2.24184969,67963.0,67962.0,0.009108]
[1722050314136,2.24084969,67963.0,67962.0,0.009108]
[1722050314847,2.24103992,67963.0,67962.0,0.009108]
[1722050314994,2.24703992,67963.0,67962.0,0.009108]
[1722050315542,2.24303992,67963.0,67962.0,0.009108]
[1722050315924,2.25085322,67963.0,67962.0,0.009108]
[1722050316538,2.24385322,67963.0,67962.0,0.009108]
[1722050316701,1.92545322,67963.0,67962.0,0.009108]
[1722050316901,1.22543922,67963.0,67962.0,0.154208]
[1722050317118,1.59611622,67963.0,67962.0,0.091308]
[1722050317365,1.89039322,67963.0,67962.0,0.091308]
[1722050317563,1.59611622,67963.0,67962.0,0.091308]
[1722050318504,1.62034451,67963.0,67962.0,0.091308]
[1722050319063,1.91462151,67963.0,67962.0,0.091308]
[1722050319381,1.62034451,67963.0,67962.0,0.091308]
[1722050319541,1.77060408,67963.0,67962.0,0.091308]
[1722050319891,1.62034451,67963.0,67962.0,0.091308]
[1722050321991,1.62003809,67963.0,67962.0,0.152708]
[1722050322539,1.83708644,67963.0,67962.0,0.152708]
[1722050323845,1.89608044,67963.0,67962.0,0.152708]
[1722050325264,1.89623754,67963.0,67962.0,0.152708]
[1722050325469,1.82935655,67963.0,67962.0,0.009108]
[1722050326102,1.67909698,67963.0,67962.0,0.009108]
[1722050326728,1.92909698,67963.0,67962.0,0.009108]
[1722050326932,1.67909698,67963.0,67962.0,0.009108]
[1722050328169,1.89627219,67963.0,67962.0,0.009108]
[1722050328404,2.19054919,67963.0,67962.0,0.009108]
[1722050328614,1.67909698,67963.0,67962.0,0.009108]
[1722050328741,2.31183398,67963.0,67962.0,0.009108]
[1722050329531,2.30383398,67963.0,67962.0,0.009108]
[1722050329949,2.29783398,67963.0,67962.0,0.009108]
[1722050330167,2.05883398,67963.0,67962.0,0.009108]
[1722050330667,2.30883398,67963.0,67962.0,0.009108]
[1722050330865,1.98237398,67963.0,67962.0,0.090208]
[1722050331032,1.68809698,67963.0,67962.0,0.090208]
[1722050332037,1.57272029,67963.0,67962.0,0.090208]
[1722050332389,1.68816314,67963.0,67962.0,0.090208]
[1722050332899,1.93816314,67963.0,67962.0,0.090208]
[1722050333201,2.23244014,67963.0,67962.0,0.090208]
[1722050335767,2.38269971,67963.0,67962.0,0.090208]
[1722050337003,2.23244014,67963.0,67962.0,0.090208]
[1722050338798,2.23204279,67963.0,67962.0,0.090208]
[1722050341477,2.11699729,67963.0,67962.0,0.090208]
[1722050341723,2.2316597,67963.0,67962.0,0.090208]
[1722050343487,2.25475029,67963.0,67962.0,0.090208]
[1722050344775,2.25434563,67963.0,67962.0,0.090208]
[1722050344978,2.14008788,67963.0,67962.0,0.090208]
[1722050345164,2.25423922,67963.0,67962.0,0.090208]
[1722050346380,2.00423922,67963.0,67962.0,0.090208]
[1722050347477,2.25423922,67963.0,67962.0,0.090208]
[1722050347681,2.00423922,67963.0,67962.0,0.090208]
[1722050347993,2.25423922,67963.0,67962.0,0.090208]
[1722050348199,2.00423922,67963.0,67962.0,0.090208]
[1722050348398,1.89008788,67963.0,67962.0,0.090208]
[1722050348611,2.0048863,67963.0,67962.0,0.090208]
[1722050348806,2.2548863,67963.0,67962.0,0.090208]
[1722050349013,2.3870916,67963.0,67962.0,0.090208]
[1722050351837,2.27229318,67963.0,67962.0,0.090208]
[1722050352011,2.3870564,67963.0,67962.0,0.090208]
[1722050352782,2.2548511,67963.0,67962.0,0.090208]
[1722050355368,2.25493433,67963.0,67962.0,0.090208]
[1722050358095,2.25458194,67963.0,67962.0,0.090208]
[1722050358469,2.00458194,67963.0,67962.0,0.090208]
[1722050358675,2.25458194,67963.0,67962.0,0.090208]
[1722050360983,2.02767546,67963.0,67962.0,0.090208]
[1722050361509,2.02715225,67963.0,67962.0,0.090208]
[1722050361703,1.73287525,67963.0,67962.0,0.090208]
[1722050362020,1.70978173,67963.0,67962.0,0.090208]
[1722050362247,1.89008788,67963.0,67962.0,0.090208]
[1722050362470,2.00445283,67963.0,67962.0,0.090208]
[1722050363377,1.71017583,67963.0,67962.0,0.090208]
[1722050363547,1.71018996,67963.0,67962.0,0.090208]
[1722050363891,2.00446696,67963.0,67962.0,0.090208]
[1722050364725,2.25446696,67963.0,67962.0,0.090208]
[1722050364931,2.00446696,67963.0,67962.0,0.090208]
[1722050365791,2.00418546,67963.0,67962.0,0.090208]
[1722050366678,2.02727904,67963.0,67962.0,0.090208]
[1722050366858,2.00418546,67963.0,67962.0,0.090208]
[1722050369645,2.02727913,67963.0,67962.0,0.090208]
[1722050369967,2.00418546,67963.0,67962.0,0.090208]
[1722050370807,1.70990846,67963.0,67962.0,0.090208]
[1722050371694,2.00418546,67963.0,67962.0,0.090208]
[1722050373284,1.70990846,67963.0,67962.0,0.090208]
[1722050373446,1.73300204,67963.0,67962.0,0.090208]
[1722050373792,1.70990846,67963.0,67962.0,0.090208]
[1722050376167,1.70947905,67963.0,67962.0,0.151608]
[1722050377179,1.73257268,67963.0,67962.0,0.151608]
[1722050378256,1.59581088,67963.0,67962.0,0.151608]
[1722050378452,1.70961454,67963.0,67962.0,0.151608]
[1722050379479,1.63321436,67963.0,67962.0,0.151608]
[1722050379692,1.70961436,67963.0,67962.0,0.151608]
[1722050380302,1.63321436,67963.0,67962.0,0.151608]
[1722050380650,1.70961436,67963.0,67962.0,0.151608]
[1722050382380,1.48312395,67963.0,67962.0,0.151608]
[1722050382589,1.41533736,67963.0,67962.0,0.151608]
[1722050382852,1.73391972,67963.0,67962.0,0.151608]
[1722050383381,1.69882613,67963.0,67962.0,0.151608]
[1722050383785,1.70282613,67963.0,67962.0,0.151608]
[1722050384821,1.58781088,67963.0,67962.0,0.151608]
[1722050385026,1.70268379,67963.0,67962.0,0.151608]
[1722050385245,1.69168379,67963.0,67962.0,0.151608]
[1722050385624,1.69268379,67963.0,67962.0,0.151608]
[1722050386468,1.71601515,67963.0,67962.0,0.151608]
[1722050386799,1.69292201,67963.0,67962.0,0.151608]
[1722050386975,1.61652201,67963.0,67962.0,0.151608]
[1722050387161,1.69292201,67963.0,67962.0,0.151608]
[1722050388257,1.39864501,67963.0,67962.0,0.151608]
[1722050388731,1.34864501,67963.0,67962.0,0.151608]
[1722050389509,1.24924501,67963.0,67962.0,0.151608]
[1722050389709,0.41355301,67963.0,67962.0,0.151608]
[1722050389911,0.53985688,67963.0,67962.0,0.151608]
[1722050390156,0.59286747,67963.0,67962.0,0.151608]
[1722050390318,0.88714447,67963.0,67962.0,0.151608]
[1722050390520,0.88314447,67963.0,67962.0,0.151608]
[1722050390905,0.88714447,67963.0,67962.0,0.151608]
[1722050391559,0.86305234,67963.0,67962.0,0.151608]
[1722050392072,0.86005234,67963.0,67962.0,0.151608]
[1722050392272,0.85905234,67963.0,67962.0,0.151608]
[1722050392617,0.86005234,67963.0,67962.0,0.151608]
[1722050392807,0.86105234,67963.0,67962.0,0.151608]
[1722050393112,0.85905234,67963.0,67962.0,0.151608]
[1722050393334,0.56477534,67963.0,67962.0,0.151608]
[1722050393535,0.5652027,67963.0,67962.0,0.151608]
[1722050393941,0.56535642,67963.0,67962.0,0.151608]
[1722050394494,0.58844855,67963.0,67962.0,0.151608]
[1722050395019,0.56535642,67963.0,67962.0,0.151608]
[1722050395577,0.27107942,67963.0,67962.0,0.151608]
[1722050395778,0.27270564,67963.0,67962.0,0.151608]
[1722050396931,0.27276993,67963.0,67962.0,0.151608]
[1722050397075,0.41990793,67963.0,67962.0,0.151608]
[1722050398087,0.44299941,67963.0,67962.0,0.151608]
[1722050398288,0.29423519,67963.0,67962.0,0.151608]
[1722050398911,0.14709719,67963.0,67962.0,0.151608]
[1722050399113,0.29423519,67963.0,67962.0,0.151608]
[1722050399327,0.29427715,67963.0,67962.0,0.151608]
[1722050399537,0.27118567,67963.0,67962.0,0.151608]
[1722050400067,0.85973967,67963.0,67962.0,0.151608]
[1722050400191,1.00846367,67963.0,67962.0,0.151608]
[1722050400389,1.0084621,67963.0,67962.0,0.151608]
[1722050400637,1.3027391,67963.0,67962.0,0.151608]
[1722050400872,1.30419279,67963.0,67962.0,0.151608]
[1722050401090,1.73376979,67963.0,67962.0,0.009108]
[1722050401653,1.73276979,67963.0,67962.0,0.009108]
[1722050401856,1.73184297,67963.0,67962.0,0.009108]
[1722050402058,1.74284297,67963.0,67962.0,0.009108]
[1722050402300,1.73184297,67963.0,67962.0,0.009108]
[1722050402505,1.74484297,67963.0,67962.0,0.009108]
[1722050403041,1.73207337,67963.0,67962.0,0.009108]
[1722050403200,1.74307337,67963.0,67962.0,0.009108]
[1722050403415,1.75607337,67963.0,67962.0,0.009108]
[1722050403618,1.75607318,67963.0,67962.0,0.009108]
[1722050405171,1.39949618,67963.0,67962.0,0.009108]
[1722050405369,1.32309618,67963.0,67962.0,0.155008]
[1722050406313,1.24889212,67963.0,67962.0,0.155008]
[1722050406557,0.86477659,67963.0,67962.0,0.155008]
[1722050406715,0.61033785,67963.0,67962.0,0.155008]
[1722050406914,0.58733785,67963.0,67962.0,0.155008]
[1722050407156,0.26997026,67963.0,67962.0,0.155008]
[1722050407378,0.12283226,67963.0,67962.0,0.155008]
[1722050407837,0.25863102,67963.0,67962.0,0.155008]
[1722050408058,0.18863702,67963.0,67962.0,0.155008]
[1722050408274,0.03983826,67963.0,67962.0,0.155008]
[1722050409171,0.04083826,67963.0,67962.0,0.156008]
[1722050409971,0.04051673,67963.0,67962.0,0.891713]
[1722050410214,0.04051673,67963.0,67962.0,0.597431]